Cogmind - Beta 10.2 @@@ ROGUE MODE // 2021.09.14 @ 13:45:09 Player: Finestep Result: Establishing 0b11! Performance ------------- Evolutions (9) 4500 Regions Visited (22) 4400 Robots Destroyed (393) 1965 Value Destroyed (20648) 20648 Prototype IDs (249) 4980 Alien Tech Used (4) 800 Bonus (35244) 35244 TOTAL SCORE: 72537 Bonus ------- High Alert Combat Kills 3818 Follower Combat Kills 4036 Network Hubs Disabled 600 Aligned with FarCom 300 Met Data Miner 300 Used Data Conduit 3000 Built Enhanced Grunts 300 A7 Reached Mainframe 300 Met R17 at Cetus 500 Pursued by Intercept 1000 Destroyed MAIN.C Guards 500 Met MAIN.C 5000 Hacked MAIN.C 300 Destroyed MAIN.C Shell 5000 Destroyed MAIN.C 10000 Win 3000 Friendly Fire -2710 Cogmind --------- Core Integrity 810/1600 Matter 250/300 Energy 1506/1520 System Corruption 0% Temperature Cool (11) Movement Treading (177) Ox1 Location 0b11 Command Parts ------- > --- POWER (3) -------- Zero-point Reactor Zero-point Reactor Zero-point Reactor > --- PROPULSION (4) --- Biometal Heavy Treads Advanced Heavy Siege Treads > --- UTILITY (14) ----- Experimental Cooling System Experimental Cooling System High-capacity Storage Unit High-capacity Storage Unit High-capacity Storage Unit Experimental Energy Well Advanced Armor Integrity Analyzer Advanced Weapon Cycler Advanced Phase Shifter Heavy Regenerative Plating Phase Armor AEGIS Remote Shield > --- WEAPON (4) ------- Enhanced Nova Cannon Enhanced Nova Cannon Sigix Broadsword > --- INVENTORY (28) --- Zero-point Reactor Biometal Heavy Treads Improved Antigrav System Experimental Heat Sink Experimental Coolant Injector Energy Well (500) Experimental Energy Well (1000) Experimental Energy Well (1000) Experimental Matter Compressor (500) Experimental Matter Compressor (500) Advanced Terrain Scan Processor Matter Filter Advanced Weapon Cycler Advanced Transmission Jammer Advanced Force Field Experimental Force Field System Restoration Module Long-range Tractor Beam Null Cannon Linked Autogun Multirail Hypercooled Linear Accelerator Graviton Cannon Graviton Cannon Micro-nuke Launcher Force Lance Peak State ------------ > --- POWER ------------ Zero-point Reactor Zero-point Reactor Zero-point Reactor > --- PROPULSION ------- Biometal Heavy Treads Advanced Heavy Siege Treads > --- UTILITY ---------- Experimental Cooling System Experimental Cooling System High-capacity Storage Unit High-capacity Storage Unit High-capacity Storage Unit Experimental Energy Well Advanced Armor Integrity Analyzer Advanced Weapon Cycler Advanced Phase Shifter Heavy Regenerative Plating Phase Armor AEGIS Remote Shield > --- WEAPON ----------- Enhanced Nova Cannon Enhanced Nova Cannon Sigix Broadsword > --- INVENTORY -------- Zero-point Reactor Biometal Heavy Treads Improved Antigrav System Experimental Heat Sink Experimental Coolant Injector Energy Well Experimental Energy Well Experimental Energy Well Experimental Matter Compressor Experimental Matter Compressor Advanced Terrain Scan Processor Matter Filter Advanced Weapon Cycler Advanced Transmission Jammer Advanced Force Field Experimental Force Field System Restoration Module Long-range Tractor Beam Null Cannon Linked Autogun Multirail Hypercooled Linear Accelerator Graviton Cannon Graviton Cannon Micro-nuke Launcher Force Lance [Rating: 240] Favorites ----------- Power Zero-point Reactor Engine Heavy Ion Engine Power Core Micro Fission Core Reactor Zero-point Reactor Propulsion Light Treads Treads Light Treads Leg Enhanced Flexi-carbon Leg Wheel Armored Huge Wheel Utility High-capacity Storage Unit Device Advanced Heat Sink Storage High-capacity Storage Unit Processor Advanced Armor Integrity Analyzer Hackware Experimental Hacking Suite Protection Centrium Medium Armor Plating Artifact Phase Armor Weapon Enhanced Autogun Energy Gun Small Laser Energy Cannon Enhanced Nova Cannon Ballistic Gun Enhanced Autogun Ballistic Cannon Mass Driver Launcher Heavy Rocket Launcher Special Weapon Advanced Remote Datajack Slashing Weapon Sigix Broadsword Piercing Weapon Force Lance Build | -11 -10 -10 -10 -9 -8 -7 -7 -7 -7 -6 -6 -5 -5 -5 -5 -5 -4 -3 -2 -2 -1 -1 ------- Run | Scr Mat Min Exi Min Mat Fac Low Low Dat Pro Fac Fac Ext Cet Arc Hub Fac Res Res Qua Acc Com Slots Evolved 18 | . . . . . 4 2 . . . . 2 2 . . . . 2 2 2 . 2 . Power 2 | . . . . . . . . . . . . 1 . . . . . 1 . . . . Propulsion 2 | . . . . . 1 . . . . . 1 . . . . . . . . . . . Utility 12 | . . . . . 3 2 . . . . 1 . . . . . 2 1 1 . 2 . Weapon 2 | . . . . . . . . . . . . 1 . . . . . . 1 . . . Parts Attached 522 | 6 16 2 4 11 38 50 12 14 15 4 29 33 14 9 6 6 40 10 58 40 16 89 Power 49 | 1 2 . . 2 1 5 . . 1 . 1 4 2 3 . . 5 2 6 5 2 7 Engine 9 | 1 1 . . 2 1 4 . . . . . . . . . . . . . . . . Core 14 | . 1 . . . . 1 . . 1 . 1 2 2 . . . 3 1 2 . . . Reactor 26 | . . . . . . . . . . . . 2 . 3 . . 2 1 4 5 2 7 Propulsion 61 | 2 2 . 1 1 8 6 1 3 1 1 4 6 2 2 . . 2 3 5 3 . 8 Treads 53 | 2 2 . 1 1 8 4 1 2 . 1 2 4 2 2 . . 2 3 5 3 . 8 Leg 5 | . . . . . . . . . 1 . 2 2 . . . . . . . . . . Wheel 3 | . . . . . . 2 . 1 . . . . . . . . . . . . . . Hover . | . . . . . . . . . . . . . . . . . . . . . . . Flight . | . . . . . . . . . . . . . . . . . . . . . . . Utility 223 | 1 4 . 1 . 18 25 3 4 9 1 12 13 7 1 6 2 20 2 23 17 11 43 Device 117 | . . . . . 3 15 1 1 4 1 5 9 4 . 3 1 6 2 17 7 7 31 Storage 27 | 1 3 . 1 . 5 2 . 1 3 . 1 2 . . . . 3 . 2 1 . 2 Processor 15 | . 1 . . . 2 3 . 1 . . 2 . 1 . . . 1 . 1 1 1 1 Hackware 7 | . . . . . . . . . . . 3 . . . 1 1 . . 1 1 . . Protection 47 | . . . . . 8 5 2 1 2 . 1 2 2 1 2 . 10 . 2 2 2 5 Artifact 10 | . . . . . . . . . . . . . . . . . . . . 5 1 4 Weapon 189 | 2 8 2 2 8 11 14 8 7 4 2 12 10 3 3 . 4 13 3 24 15 3 31 Energy Gun 17 | 1 2 . . . . . . . . . . 3 . . . . 4 . . . 1 6 Energy Cannon 22 | . . . . . . . . . 1 . 2 1 . . . . . . 6 1 2 9 Ballistic Gun 78 | 1 4 2 2 7 5 8 5 4 2 1 4 1 1 3 . 2 6 2 10 . . 8 Ballistic Cannon 31 | . . . . . 4 . . . . 1 1 3 2 . . . . . 1 13 . 6 Launcher 12 | . . . . 1 2 4 1 2 . . . 1 . . . . 1 . . . . . Special Weapon 4 | . 2 . . . . . . . . . . 1 . . . . . . . . . 1 Impact Weapon . | . . . . . . . . . . . . . . . . . . . . . . . Slashing Weapon 17 | . . . . . . 2 2 1 1 . 5 . . . . 2 2 . . 1 . 1 Piercing Weapon 8 | . . . . . . . . . . . . . . . . . . 1 7 . . . Special Melee Weapon . | . . . . . . . . . . . . . . . . . . . . . . . Unidentified Prototypes 18 | . . . . . 2 2 . . . . . . . 1 . . . . 1 5 1 6 Parts Lost 69 | . 4 1 . 1 . 4 2 2 . 2 5 10 . . . . 10 1 18 2 2 5 Power 11 | . 1 . . 1 . 2 . . . . . 2 . . . . 2 . 3 . . . Propulsion 11 | . . . . . . 1 1 . . 1 3 2 . . . . 1 . 2 . . . Utility 23 | . . . . . . . . 1 . 1 1 3 . . . . 4 1 5 1 2 4 Weapon 24 | . 3 1 . . . 1 1 1 . . 1 3 . . . . 3 . 8 1 . 1 Highest Loss Streak 10 | . 2 1 . 1 . 1 1 2 . 1 4 10 . . . . 4 1 8 2 2 3 Average Slot Usage (%) 86 | . 99 100 77 84 88 96 91 89 48 96 94 92 94 90 86 88 86 84 82 82 86 78 Engine 2 | . 11 . . 8 9 6 7 6 . . . . . . . . . . . . . . Core 3 | . 1 14 14 5 . . . . 3 7 6 8 11 4 . . 3 14 5 2 . . Reactor 4 | . . . . . . . . . . . . 1 . 5 11 11 6 . 5 10 12 12 Treads 15 | . 28 28 28 28 27 15 6 7 15 14 15 14 17 13 11 11 10 9 7 7 8 7 Device 10 | . . . . . . 6 6 2 4 23 15 15 12 5 12 1 7 10 16 17 18 22 Storage 17 | . 25 28 24 14 16 23 23 23 9 15 18 16 17 17 17 17 14 14 13 13 12 13 Processor 7 | . 2 . . . 8 14 15 15 4 . 5 5 8 11 11 11 10 9 11 13 11 4 Protection 5 | . . . . . 8 7 7 10 . 12 5 4 6 10 2 11 13 12 2 1 7 6 Ballistic Gun 10 | . 19 28 10 27 15 14 13 14 . 7 8 4 4 7 17 15 8 13 8 . . 2 Ballistic Cannon 2 | . . . . . 2 . . . . 6 . 4 9 8 . . . . . 8 4 . Slashing Weapon 1 | . . . . . . . 1 . 5 . 2 . . . . 1 . . . 2 4 3 Naked Turns . | . . . . . . . . . . . . . . . . . . . . . . . Heaviest Build 289 | 9 55 56 87 89 131 147 76 83 112 87 96 137 116 141 141 133 158 165 192 240 247 289 Greatest Support 170 | 40 40 40 40 40 60 60 28 40 40 48 68 125 125 160 160 160 160 150 170 155 155 170 Greatest Overweight (x) 41 | . 1 1 2 2 2 2 2 3 2 4 4 4 . 1 41 . 1 2 2 1 1 3 Average Overweight (x) 1 | . . 1 1 2 1 1 2 1 1 1 1 1 . . 7 . . . . . 1 1 Largest Inventory Capacity 42 | 6 18 18 24 24 32 42 22 24 24 18 24 24 24 24 24 24 28 28 34 28 28 28 Average Capacity 24 | 5 14 18 19 24 28 22 22 22 12 18 22 23 24 24 24 24 24 28 28 28 28 27 Most Carried 30 | 6 17 18 24 24 30 30 22 24 23 18 24 24 24 24 24 24 28 28 28 28 28 28 Average Carried 22 | 3 13 17 18 23 28 21 21 21 9 18 21 19 23 23 23 24 22 27 25 27 27 26 Final Capacity 30 | 6 18 18 24 24 30 22 22 24 18 18 24 24 24 24 24 24 28 28 28 28 28 28 Final Carried 30 | 5 17 18 24 24 30 22 22 21 18 18 21 24 24 24 24 24 28 28 28 28 28 28 Class Distribution -------------------- 30% | Hauler-Mutant 22% | Scavenger-Mutant 17% | Mutant 10% | Scavenger-Tank 6% | Generator-Mutant 4% | Scavenger-Gunner Dominant Class ---------------- Mutant | -10/Materials Mutant | -10/Mines Mutant | -10/Exiles Hauler-Mutant | -9/Mines Hauler-Mutant | -8/Materials Hauler-Mutant | -7/Factory Hauler-Mutant | -7/Lower Caves Hauler-Mutant | -7/Lower Caves Mutant | -7/Data Miner Derelict-Mutant | -6/Proximity Caves Hauler-Mutant | -6/Factory Scavenger-Mutant | -5/Factory Scavenger-Tank | -5/Extension Commander-Tank | -5/Cetus Scavenger-Gunner | -5/Archives Scavenger-Tank | -5/Hub_04(d) Scavenger-Tank | -4/Factory Scavenger-Tank | -3/Research Scavenger-Mutant | -2/Research Hauler-Mutant | -2/Quarantine Scavenger-Mutant | -1/Access Scavenger-Mutant | -1/Command Resources | -11 -10 -10 -10 -9 -8 -7 -7 -7 -7 -6 -6 -5 -5 -5 -5 -5 -4 -3 -2 -2 -1 -1 ----------- Run | Scr Mat Min Exi Min Mat Fac Low Low Dat Pro Fac Fac Ext Cet Arc Hub Fac Res Res Qua Acc Com Matter Collected 19579 | 271 265 223 118 237 1532 1532 91 636 322 473 829 470 1074 262 383 105 1660 319 1412 1644 940 4781 Remotely 1061 | . . . . . . . . . . . . . . . . . . . . . . 1061 Salvage Created 21349 | 151 696 206 . 14 2309 1905 57 403 . 375 922 431 1142 152 365 496 1767 455 3369 1137 1565 3432 Parts 968 | 14 41 3 . 4 112 117 1 13 . 15 40 21 53 8 31 22 71 20 163 52 45 122 Haulers Intercepted 15 | . 2 . . . 5 3 . . . . . . . . . . 1 . 3 1 . . Recyclers Shooed 19 | . 1 . . . 5 . . . . . 3 1 1 . . . . . 3 1 4 . Parts Field Recycled . | . . . . . . . . . . . . . . . . . . . . . . . Retrieved Matter . | . . . . . . . . . . . . . . . . . . . . . . . Parts Self-Destructed 24 | . . . . . . . . 9 . 15 . . . . . . . . . . . . Prevented . | . . . . . . . . . . . . . . . . . . . . . . . Kills | -11 -10 -10 -10 -9 -8 -7 -7 -7 -7 -6 -6 -5 -5 -5 -5 -5 -4 -3 -2 -2 -1 -1 ------- Run | Scr Mat Min Exi Min Mat Fac Low Low Dat Pro Fac Fac Ext Cet Arc Hub Fac Res Res Qua Acc Com Combat Hostiles Destroyed 284 | . 14 6 . 2 34 28 1 16 . 11 10 8 21 1 1 5 22 6 34 17 17 30 Melee 8 | . . . . . . . . . . . 1 . . . . . . . 4 3 . . Guns 154 | . 14 6 . . 16 26 1 6 . 8 6 3 10 . 1 2 15 6 26 . . 8 Cannons 79 | . . . . . 14 . . . . 3 3 1 11 1 . . . . 3 9 16 18 AOE 28 | . . . . 2 4 2 . 10 . . . 4 . . . 3 3 . . . . . Classes Destroyed 24 | 2 6 2 . . 4 2 1 2 . . . 1 2 . . . 1 . . . . 1 Worker 20 | . 2 . . . 5 5 . . . . 1 . . . . 3 1 . 2 . . 1 Builder 8 | . . 1 . . . 3 . . . . 1 . 1 . . 1 . . 1 . . . Tunneler 5 | 4 . . . . . 1 . . . . . . . . . . . . . . . . Hauler 15 | . 2 . . . 5 3 . . . . . . . . . . 1 . 3 1 . . Recycler 29 | 1 1 . . . 7 2 . . . . 3 1 2 . . 1 1 . 4 2 3 1 Mechanic 3 | . . . . . . 1 . . . . . . . . . . 1 . . 1 . . Operator 13 | . 2 . . . 1 . . . . . . . 1 . 8 . . . 1 . . . Drone 1 | . . . . . . . . . . . . 1 . . . . . . . . . . Watcher 18 | . 1 . . . 5 1 . . . . 1 1 2 . . . . . 6 . 1 . Swarmer 40 | . 3 . . 2 4 3 . . . 7 3 . 8 1 . . 1 . 7 . . 1 Saboteur 1 | . . . . . . . . . . . . . . . . . 1 . . . . . Grunt 105 | . 11 . . . 19 11 . 9 . 3 3 6 4 . . 4 6 4 9 . 12 4 Brawler 4 | . . . . . 1 . . 2 . . . . . . . . . . . . 1 . Duelist 6 | . . . . . 2 . . 2 . . . . . . . . 1 . 1 . . . Protector 2 | . . . . . . . . 1 . . . . . . . . . . . . . 1 Sentry 32 | . . . . . 7 6 . 1 . 1 2 . 4 . 1 . 4 2 2 . 1 1 Specialist 1 | . . . . . . . . . . . . . 1 . . . . . . . . . Hunter 17 | . . . . . 1 3 . . . . 1 . . . . 1 4 . . . . 7 Programmer 39 | . . . . . . 5 . . . . 1 2 2 . . . 4 . 13 2 3 7 Behemoth 5 | . . . . . . . . . . . . . 2 . . . 1 . . . . 2 Quarantine Guard 11 | . . . . . . . . . . . . . . . . . . . . 11 . . M Guard 2 | . . . . . . . . . . . . . . . . . . . . . . 2 Tracker 2 | . . . . . . . . . . . . . . . . . . . . 2 . . Combat Programmer 6 | . . . . . . . . . . . . . . . . . . . 2 2 . 2 Alpha 7 1 | . . . . . . . . . . . . . . . . . . . . . . 1 Master Thief 1 | . . . . . . . . 1 . . . . . . . . . . . . . . Assembled 6 | . . 6 . . . . . . . . . . . . . . . . . . . . Thug 2 | . . . . . . . . . . . . . . 2 . . . . . . . . Mutant 1 | . . . . . . . 1 . . . . . . . . . . . . . . . Best Kill Streak 14 | 3 4 2 . 2 9 7 1 8 . 4 5 5 7 1 4 9 5 2 14 4 8 5 Combat Bots Only 9 | . 3 2 . 2 7 5 1 8 . 4 3 5 7 1 1 4 5 2 9 4 8 5 Max Kills in Single Turn 7 | 1 1 1 . 2 3 4 1 3 . 1 2 2 2 1 1 7 2 1 2 2 1 2 Gunslinging . | . . . . . . . . . . . . . . . . . . . . . . . Exploded 3 | . . . . 2 3 2 . 3 . . . 2 . . . 3 2 . . . . . Melee 1 | . . . . . . . . . . . 1 . . . . . . . 1 1 . . Uniques/NPCs Destroyed 4 | . . 1 . . . . . . . . . . . 1 . . . . . . . 2 YI-UF0 (-10/Mines) Revision 17 (-5/Cetus) MAIN.C Shell (-1/Command) MAIN.C (-1/Command) Combat | -11 -10 -10 -10 -9 -8 -7 -7 -7 -7 -6 -6 -5 -5 -5 -5 -5 -4 -3 -2 -2 -1 -1 -------- Run | Scr Mat Min Exi Min Mat Fac Low Low Dat Pro Fac Fac Ext Cet Arc Hub Fac Res Res Qua Acc Com Damage Taken 33670 | . 712 439 . 215 1496 2387 429 1099 . 790 1059 2017 1355 376 59 762 3934 745 5307 3756 1334 5399 Core 3227 | . 86 19 . 15 146 280 19 219 . 46 185 272 85 44 . 25 223 21 320 432 101 689 Absorbed by Shields 4667 | . . . . . . . . . . 303 172 251 465 136 21 . . . . . 46 3273 Reduced by Siege Mode 1229 | . . . . . . . . . . . . . 13 . . . 199 17 349 209 55 387 Redirected to Core 812 | . . . . . . . . . . . . . . . . . . . . 256 13 543 Core Remaining (%) 65 | 100 . . . 52 73 . . . . 19 78 . . . . 57 80 98 . 48 . 50 Volleys Fired 1376 | 11 110 43 . 10 160 169 12 39 . 43 40 39 52 8 25 15 87 26 117 66 69 235 Largest 4 | 2 2 2 . 2 2 2 2 2 . 2 2 3 3 3 3 3 3 3 4 4 2 3 Hottest 244 | 60 100 40 . 43 70 50 53 48 . 76 97 155 188 171 105 105 195 103 209 244 130 240 Shots Fired 2729 | 22 210 84 . 18 315 326 25 68 . 87 66 66 139 24 74 44 212 68 265 131 111 374 Gun 1846 | 22 204 84 . 13 225 322 25 59 . 42 60 32 51 7 74 44 209 68 211 . . 94 Cannon 845 | . . . . . 85 . . . . 45 6 29 88 17 . . . . 54 131 111 279 Launcher 30 | . . . . 5 5 4 . 9 . . . 4 . . . . 3 . . . . . Special 8 | . 6 . . . . . . . . . . 1 . . . . . . . . . 1 Kinetic 2218 | 11 140 84 . 13 310 322 25 59 . 87 61 45 122 24 74 44 154 68 217 114 42 202 Thermal 322 | 11 70 . . . . . . . . . . . 17 . . . . . 12 1 69 142 Explosive 30 | . . . . 5 5 4 . 9 . . . 4 . . . . 3 . . . . . Electromagnetic 157 | . . . . . . . . . . . 5 16 . . . . 55 . 36 16 . 29 Robot Hit Streak 52 | 10 16 19 . 4 17 20 26 6 . 7 16 16 16 4 12 7 50 16 30 42 34 52 Robot Miss Streak 7 | 1 4 6 . 2 4 6 . 6 . 6 6 4 3 3 4 3 3 2 5 1 2 7 Penetration Max 1 | . . . . . . . . . . . . 1 1 1 1 1 1 1 1 . . . Secondary Targets 15 | . . 1 . . 3 2 . 1 . . 1 . . . . . 3 1 3 . . . Max Gunslinging Chain 1 | . . 1 . . 1 1 . 1 . . 1 . . . . . 1 1 1 . . . Shots Hit Robots 1927 | 17 126 54 . 7 222 239 22 54 1 65 69 47 89 12 38 22 169 46 216 93 77 242 Core Hits 916 | 7 46 23 . 2 109 91 4 50 . 40 81 32 46 5 21 22 58 14 104 37 32 92 Critical Hits 116 | . . 3 . . 3 3 . . . 2 1 5 3 . 7 5 16 3 22 19 8 16 Critical Kills 31 | . . . . . 2 . . . . 1 1 . . . 3 1 3 2 7 7 4 . Critical Parts Destroyed 70 | . . 2 . . 1 2 . . . 1 . 4 3 . 4 4 8 1 15 11 4 10 Melee Attacks 138 | . . . . . . 5 6 . 1 . 15 . . . . 4 4 4 34 13 2 50 Impact . | . . . . . . . . . . . . . . . . . . . . . . . Slashing 100 | . . . . . . 5 6 . 1 . 15 . . . . 4 4 . . 13 2 50 Piercing 38 | . . . . . . . . . . . . . . . . . . 4 34 . . . Sneak Attacks 4 | . . . . . . . . . 1 . . . . . . . 1 . 1 1 . . Combat Hostiles 2 | . . . . . . . . . . . . . . . . . 1 . . 1 . . Follow-up Attacks . | . . . . . . . . . . . . . . . . . . . . . . . Damage Inflicted 62041 | 148 1243 472 . 187 4200 4828 415 2528 88 793 1662 2070 3849 496 1364 1660 4957 1219 7413 4675 3989 13785 Guns 29293 | 148 1129 467 . 68 2661 4223 415 710 . 471 1362 627 1055 56 1364 798 4231 1219 5404 . . 2885 Cannons 21181 | . . . . . 1301 . . . . 322 173 670 2794 440 . . . . 1280 3838 3989 6374 Explosions 5135 | . 114 . . 119 238 595 . 1818 . . . 773 . . . 852 598 . 28 . . . Melee 6407 | . . . . . . . . . 88 . 127 . . . . . 128 . 701 837 . 4526 Ramming 25 | . . 5 . . . 10 . . . . . . . . . 10 . . . . . . Kinetic 42651 | 60 630 467 . 68 3962 4223 415 710 . 793 1390 1067 3419 496 1364 798 3540 1219 5479 3230 1906 7415 Thermal 4638 | 88 499 . . . . . . . . . . . 430 . . . . . 186 . 2083 1352 Explosive 4054 | . 114 . . 119 238 478 . 1818 . . . 689 . . . . 598 . . . . . Electromagnetic 4266 | . . . . . . 117 . . . . 145 314 . . . 852 691 . 1047 608 . 492 Impact . | . . . . . . . . . . . . . . . . . . . . . . . Slashing 5706 | . . . . . . . . . 88 . 127 . . . . . 128 . . 837 . 4526 Piercing 701 | . . . . . . . . . . . . . . . . . . . 701 . . . Highest Corruption 23 | . 2 6 6 10 . 8 8 8 8 8 . 3 4 4 4 1 4 . 17 17 3 23 Average Corruption 7 | . 1 4 6 8 . 6 8 8 8 8 . 2 3 4 3 1 2 . 9 11 2 14 Corruption Purged 44 | . . . . . . . . . . . . . . . 4 . . . . 17 . 23 Effects 750 | . 12 39 43 41 . 84 11 22 20 34 . 14 41 11 11 . 5 . 41 127 3 191 Message Errors 147 | . 4 13 13 9 . 11 3 6 4 9 . 3 5 3 1 . 1 . 7 23 1 31 Matter Fused 117 | . . 7 9 8 . 16 1 7 3 3 . 1 11 1 3 . 1 . 4 22 . 20 Heat Flow Errors 76 | . 4 3 8 5 . 8 1 2 2 2 . 3 6 . 1 . . . 6 9 2 14 Energy Discharges 80 | . 1 3 5 2 . 8 2 . 9 4 . 4 6 3 1 . . . 6 11 . 15 Parts Rejected 5 | . . . . . . . . 1 . 1 . . . 1 . . . . 1 . . 1 Data Loss (minor) 70 | . 3 3 8 4 . 7 . 1 2 4 . 2 3 2 . . . . 3 10 . 18 Data Loss (major) 15 | . . 2 . 3 . 2 1 . . 2 . . . . . . . . 1 3 . 1 Misfires 19 | . . . . 3 . 1 1 2 . 2 . . . . . . . . . 3 . 7 Alerts 4 | . . . . . . . . . . . . . . . . . . . . 1 . 3 Misdirections 35 | . . . . 4 . . . . . . . . . . . . . . 1 13 . 17 Targeting Errors 159 | . . 6 . 3 . 23 2 2 . 7 . 1 9 1 4 . 3 . 12 25 . 61 Weapon Failures 23 | . . 2 . . . 8 . 1 . . . . 1 . 1 . . . . 7 . 3 Overload Shots . | . . . . . . . . . . . . . . . . . . . . . . . Overflow Damage 1632 | . 27 . . 26 25 17 . 46 28 . . 51 116 . . 2 58 . 73 154 280 729 Projectiles 737 | . . . . . 4 . . . . . . 35 116 . . . . . 73 140 280 89 Explosions 155 | . 27 . . 26 21 17 . 46 . . . 16 . . . 2 . . . . . . Melee 740 | . . . . . . . . . 28 . . . . . . . 58 . . 14 . 640 Knockbacks 84 | . . . . . 23 . . . . 1 . 7 11 . . . . . 1 10 20 11 Impact . | . . . . . . . . . . . . . . . . . . . . . . . Kinetic 78 | . . . . . 19 . . . . 1 . 7 11 . . . . . 1 10 18 11 Secondary 6 | . . . . . 4 . . . . . . . . . . . . . . . 2 . Self-Inflicted Damage 317 | . . . . . . 71 . . . . . 14 . . . 100 132 . . . . . Shots 8 | . . . . . . 3 . . . . . 1 . . . 1 3 . . . . . Rammed 4 | . . 1 . . . 2 . . . . . . . . . 1 . . . . . . Targets Rammed 4 | . . 1 . . . 2 . . . . . . . . . 1 . . . . . . Kicked . | . . . . . . . . . . . . . . . . . . . . . . . Crushed . | . . . . . . . . . . . . . . . . . . . . . . . Highest Temperature 441 | 40 272 263 277 283 261 334 250 238 195 367 99 310 237 200 441 170 54 . 271 410 382 336 Average Temperature 76 | 16 40 47 104 111 47 66 49 49 90 117 34 100 72 69 127 58 16 . 90 108 73 97 Received Heat Transfer 4571 | . 273 . . 9 738 645 24 354 . 98 225 587 199 18 . 162 372 183 423 63 186 12 Effects 16 | . . . . . . 3 . . . 1 . . 2 . 4 . . . . 5 . 1 Shutdowns 3 | . . . . . . . . . . 1 . . . . 1 . . . . 1 . . Energy Bleed 3 | . . . . . . . . . . . . . . . 2 . . . . . . 1 Interference 9 | . . . . . . 3 . . . . . . 2 . . . . . . 4 . . Damage (minor) 1 | . . . . . . . . . . . . . . . 1 . . . . . . . Siege Activations 26 | . . . . . . . . . . . . . 2 . . . 3 1 6 3 3 8 Total Turns 754 | . . . . . . . . . . . . . 41 . . . 87 36 157 52 82 299 Longest Duration 88 | . . . . . . . . . . . . . 32 . . . 52 36 62 20 39 88 Robots Corrupted 17 | . . . . . . . . . . . . 1 . . . . 3 . 4 5 . 4 Combat Hostiles 12 | . . . . . . . . . . . . . . . . . 3 . 1 4 . 4 Parts Fried 50 | . . . . . . . . . . . . 2 . . . 2 8 . 17 13 1 7 Impact Corruptions 1 | . . . . . . . . . . . . . . . . . . . . . 1 . Robots Melted . | . . . . . . . . . . . . . . . . . . . . . . . Combat Hostiles . | . . . . . . . . . . . . . . . . . . . . . . . Parts Melted 9 | . . . . . . . . . . . . . 2 . . . . . . 3 1 3 Heat Transferred 4463 | 200 1125 . . . . . . . . . . . 407 . . . . . 198 . 1591 942 Parts Sabotaged . | . . . . . . . . . . . . . . . . . . . . . . . Parts Stolen 4 | . . . . . . . . 4 . . . . . . . . . . . . . . Parts Stripped . | . . . . . . . . . . . . . . . . . . . . . . . Power Chain Reactions 3 | . . . . . . . . . . . . . . . . 2 . . 1 . . . Missiles Intercepted . | . . . . . . . . . . . . . . . . . . . . . . . Alert | -11 -10 -10 -10 -9 -8 -7 -7 -7 -7 -6 -6 -5 -5 -5 -5 -5 -4 -3 -2 -2 -1 -1 ------- Run | Scr Mat Min Exi Min Mat Fac Low Low Dat Pro Fac Fac Ext Cet Arc Hub Fac Res Res Qua Acc Com Peak Influence 1490 | 25 185 58 . 33 671 1384 . . . . 327 583 1468 1490 950 1354 715 550 944 816 837 318 Initial 774 | . 16 58 . . . 289 . . . . 12 110 201 774 596 210 662 363 213 525 384 256 Average 413 | 11 70 18 . 10 324 556 . . . . 211 424 711 1140 748 437 511 413 414 618 602 210 Maximum Alert Level 4 | . . . . . 2 4 . . . . 1 2 4 4 3 4 3 2 3 3 3 2 Low Security (%) 23 | 100 100 100 . 100 25 . . . . . 39 10 . . . 15 . . . . . 13 Level 1 22 | . . . . . 38 48 . . . . 60 27 10 . . 35 22 45 47 . 5 25 Level 2 43 | . . . . . 35 29 . . . . . 62 50 . 30 41 76 54 50 89 68 60 Level 3 7 | . . . . . . 14 . . . . . . 20 42 69 6 . . 1 10 25 . Level 4 2 | . . . . . . 7 . . . . . . 18 57 . . . . . . . . Level 5 . | . . . . . . . . . . . . . . . . . . . . . . . High Security . | . . . . . . . . . . . . . . . . . . . . . . . Max Security . | . . . . . . . . . . . . . . . . . . . . . . . Squads Dispatched 74 | . 3 . . 1 5 18 . 1 . . 3 5 5 . . 10 5 1 6 4 4 3 Investigation 22 | . 2 . . . 2 5 . . . . 3 1 2 . . 3 1 1 . . 2 . Extermination 16 | . . . . . . 5 . . . . . 1 . . . . 2 . 3 1 1 3 Reinforcement 12 | . 1 . . . 2 2 . . . . . . 2 . . 3 1 . . . 1 . Assault 9 | . . . . 1 1 2 . 1 . . . . 1 . . 2 1 . . . . . Garrison 9 | . . . . . . 4 . . . . . 3 . . . 2 . . . . . . Intercept 6 | . . . . . . . . . . . . . . . . . . . 3 3 . . Construction Impeded 1 | . . . . . . . . . . . . . 1 . . . . . . . . . Haulers Reinforced 3 | . . . . . . 2 . . . . . . . . . 1 . . . . . . Stealth | -11 -10 -10 -10 -9 -8 -7 -7 -7 -7 -6 -6 -5 -5 -5 -5 -5 -4 -3 -2 -2 -1 -1 --------- Run | Scr Mat Min Exi Min Mat Fac Low Low Dat Pro Fac Fac Ext Cet Arc Hub Fac Res Res Qua Acc Com Distress Signals 36 | . 1 . . . 3 . . . . . 2 . . 2 . 3 1 . 1 . 2 21 Communications Jammed 137 | . . . . . . . . . . . . . . . . . . . 91 . 44 2 Distress Signals 136 | . . . . . . . . . . . . . . . . . . . 90 . 44 2 Times Spotted 522 | . 30 8 . 5 67 53 3 26 . 15 14 24 41 24 18 20 31 6 58 17 28 34 Peak Tracking Total 15 | . 3 1 . 3 9 6 3 10 . 4 5 8 6 6 1 15 6 4 7 7 8 4 Tactical Retreats 55 | . 2 2 . . 15 7 1 5 . 4 1 5 4 . . 3 . . 3 . 3 . Traps | -11 -10 -10 -10 -9 -8 -7 -7 -7 -7 -6 -6 -5 -5 -5 -5 -5 -4 -3 -2 -2 -1 -1 ------- Run | Scr Mat Min Exi Min Mat Fac Low Low Dat Pro Fac Fac Ext Cet Arc Hub Fac Res Res Qua Acc Com Traps Triggered 16 | . 2 . . . . 2 . . . . 1 1 . . . . 3 1 . 2 1 3 Indirectly . | . . . . . . . . . . . . . . . . . . . . . . . Trap Hack Attempts . | . . . . . . . . . . . . . . . . . . . . . . . Triggered . | . . . . . . . . . . . . . . . . . . . . . . . Disarmed . | . . . . . . . . . . . . . . . . . . . . . . . Reprogrammed . | . . . . . . . . . . . . . . . . . . . . . . . Reused . | . . . . . . . . . . . . . . . . . . . . . . . Traps Extracted . | . . . . . . . . . . . . . . . . . . . . . . . Installed . | . . . . . . . . . . . . . . . . . . . . . . . Triggered 2 | . . . . . . . 2 . . . . . . . . . . . . . . . Machines | -11 -10 -10 -10 -9 -8 -7 -7 -7 -7 -6 -6 -5 -5 -5 -5 -5 -4 -3 -2 -2 -1 -1 ---------- Run | Scr Mat Min Exi Min Mat Fac Low Low Dat Pro Fac Fac Ext Cet Arc Hub Fac Res Res Qua Acc Com Machines Disabled 54 | . 2 . . . 2 8 1 2 . . . 4 3 . 4 6 4 1 1 12 . 4 Max in Single Turn 8 | . 2 . . . 1 8 1 1 . . . 1 1 . 1 6 2 1 1 2 . 1 Garrison Access 5 | . . . . . . . . . . . 1 1 . . . 1 . . 1 1 . . Network Hub 3 | . . . . . . . . . . . . . . . . 3 . . . . . . Machines Sabotaged 1 | . . . . . . . . . . . . . . . . 1 . . . . . . Garrisons Compromised . | . . . . . . . . . . . . . . . . . . . . . . . Overloaded Fab Kills . | . . . . . . . . . . . . . . . . . . . . . . . Fab Network Shutdowns 1 | . . . . . . . . . . . . . . . . . . . 1 . . . Hacking | -11 -10 -10 -10 -9 -8 -7 -7 -7 -7 -6 -6 -5 -5 -5 -5 -5 -4 -3 -2 -2 -1 -1 --------- Run | Scr Mat Min Exi Min Mat Fac Low Low Dat Pro Fac Fac Ext Cet Arc Hub Fac Res Res Qua Acc Com Machines Accessed 104 | . 9 . 2 1 12 8 1 . 4 . 6 6 14 1 . 4 5 4 7 11 6 3 Terminals 64 | . 6 . . 1 7 3 . . . . 4 1 13 1 . 4 2 3 4 8 5 2 Fabricators 8 | . . . . . . 1 . . . . 1 2 . . . . 1 1 2 . . . Repair Stations 11 | . 1 . . . 1 1 . . . . . 1 1 . . . 2 . . 2 1 1 Recycling Units 6 | . 2 . . . 2 2 . . . . . . . . . . . . . . . . Scanalyzers 2 | . . . . . 2 . . . . . . . . . . . . . . . . . Garrison Access 6 | . . . . . . 1 . . . . 1 2 . . . . . . 1 1 . . Total Hacks 343 | . 35 . 5 3 41 24 1 . 27 . 17 14 27 2 . 12 23 7 29 38 31 7 Successful 171 | . 19 . 5 1 26 6 1 . 27 . 8 7 10 1 . 6 10 1 14 14 12 3 Failed 171 | . 15 . . 2 15 18 . . . . 9 7 17 1 . 6 13 6 15 24 19 4 Catastrophic 35 | . 1 . . . . 2 . . . . 2 . 5 1 . 1 8 2 3 5 5 . Database Lockouts 1 | . 1 . . . . . . . . . . . . . . . . . . . . . Manual 141 | . 21 . 1 . 17 6 . . . . 7 2 6 1 . 10 11 2 9 24 22 2 Terminals 207 | . 28 . . 3 19 8 . . . . 11 3 26 2 . 12 13 6 18 29 26 3 Fabricators 26 | . . . . . . 2 . . . . 4 6 . . . . 4 1 9 . . . Repair Stations 37 | . 2 . . . 5 4 . . . . . 2 1 . . . 6 . . 8 5 4 Recycling Units 14 | . 5 . . . 5 4 . . . . . . . . . . . . . . . . Scanalyzers 12 | . . . . . 12 . . . . . . . . . . . . . . . . . Garrison Access 14 | . . . . . . 6 . . . . 2 3 . . . . . . 2 1 . . Terminal Hacks 90 | . 7 . 5 1 8 . 1 . 27 . 4 2 8 1 . 2 6 1 5 3 8 1 Record 15 | . . . 4 . . . . . 11 . . . . . . . . . . . . . Part Schematic 14 | . 1 . . . . . . . 8 . 3 1 1 . . . . . . . . . Robot Schematic 6 | . . . . . 1 . . . 5 . . . . . . . . . . . . . Prototype ID Bank 5 | . . . . . 2 . . . 3 . . . . . . . . . . . . . Open Door 10 | . . . . . . . 1 . . . . . 5 1 . . . . . . 2 1 Level Access Points 2 | . . . . . . . . . . . 1 . . . . 1 . . . . . . Branch Access Points 3 | . . . . . 1 . . . . . . . . . . . 1 . 1 . . . Terminal Index 1 | . 1 . . . . . . . . . . . . . . . . . . . . . Alert Level 2 | . . . . . . . . . . . . . . . . . 1 . . . 1 . Unreport Threat 15 | . 1 . . . 2 . . . . . . . 1 . . 1 3 . 2 1 4 . Locate Traps 5 | . 2 . . . 1 . . . . . . . . . . . . 1 1 . . . Hauler Manifests 1 | . 1 . . . . . . . . . . . . . . . . . . . . . Registered Components 1 | . . . . . . . . . . . . . . . . . 1 . . . . . Zone Layout 9 | . 1 . . 1 1 . . . . . . 1 1 . . . . . 1 2 1 . EX-Prototype ID Bank 1 | . . . 1 . . . . . . . . . . . . . . . . . . . Fabricator Hacks 9 | . . . . . . . . . . . 2 2 . . . . 1 . 4 . . . Load Schematic 5 | . . . . . . . . . . . 1 1 . . . . 1 . 2 . . . Build 4 | . . . . . . . . . . . 1 1 . . . . . . 2 . . . Repair Station Hacks 22 | . 2 . . . 4 2 . . . . . 2 . . . . 2 . . 6 2 2 Scan Component 11 | . 1 . . . 2 1 . . . . . 1 . . . . 1 . . 3 1 1 Repair 11 | . 1 . . . 2 1 . . . . . 1 . . . . 1 . . 3 1 1 Recycling Unit Hacks 2 | . 1 . . . . 1 . . . . . . . . . . . . . . . . Retrieve Components 2 | . 1 . . . . 1 . . . . . . . . . . . . . . . . Scanalyzer 11 | . . . . . 11 . . . . . . . . . . . . . . . . . Insert Component 5 | . . . . . 5 . . . . . . . . . . . . . . . . . Analyze 6 | . . . . . 6 . . . . . . . . . . . . . . . . . Garrison Access Hacks 3 | . . . . . . . . . . . . 1 . . . . . . 1 1 . . Seal Access 3 | . . . . . . . . . . . . 1 . . . . . . 1 1 . . Unauthorized Hacks 34 | . 9 . . . 3 3 . . . . 2 . 2 . . 4 1 . 4 4 2 . Terminals 27 | . 7 . . . 3 . . . . . 1 . 2 . . 4 1 . 3 4 2 . Track 11 | . 2 . . . 2 . . . . . 1 . . . . 1 . . 1 3 1 . Assimilate 3 | . 1 . . . 1 . . . . . . . . . . . . . . . 1 . Botnet 9 | . 3 . . . . . . . . . . . 2 . . . 1 . 2 1 . . Detonate 2 | . 1 . . . . . . . . . . . . . . 1 . . . . . . Sabotage 2 | . . . . . . . . . . . . . . . . 2 . . . . . . Fabricators 1 | . . . . . . . . . . . . . . . . . . . 1 . . . Prioritize 1 | . . . . . . . . . . . . . . . . . . . 1 . . . Repair Stations . | . . . . . . . . . . . . . . . . . . . . . . . Recycling Units 3 | . 2 . . . . 1 . . . . . . . . . . . . . . . . Tunnel 3 | . 2 . . . . 1 . . . . . . . . . . . . . . . . Scanalyzers . | . . . . . . . . . . . . . . . . . . . . . . . Garrison Access 3 | . . . . . . 2 . . . . 1 . . . . . . . . . . . Reprogram 2 | . . . . . . 2 . . . . . . . . . . . . . . . . Jam 1 | . . . . . . . . . . . 1 . . . . . . . . . . . Data Cores Recovered 2 | . . . . . . . . . . . . . 1 . . . . . 1 . . . Used 2 | . . . . . . . . . . . . . 1 . . . . . 1 . . . Hacking Detections 86 | . 8 . . 1 11 7 . . . . 6 5 12 1 . 4 4 4 6 9 6 2 Full Trace Events 13 | . . . . . 2 4 . . . . 1 1 2 . . . 1 . . . 2 . Feedback Events 3 | . . . . . . 1 . . . . . . 1 . . . 1 . . . . . Corruption 3 | . . . . . . 1 . . . . . . 1 . . . 1 . . . . . Feedback Blocked . | . . . . . . . . . . . . . . . . . . . . . . . Robot Schematics Acquired 6 | . . . . . 1 . . . 5 . . . . . . . . . . . . . Robots Built . | . . . . . . . . . . . . . . . . . . . . . . . Matter . | . . . . . . . . . . . . . . . . . . . . . . . Time . | . . . . . . . . . . . . . . . . . . . . . . . Total Robot Build Rating . | . . . . . . . . . . . . . . . . . . . . . . . Part Schematics Acquired 19 | . 1 . . . 5 . . . 8 . 3 1 1 . . . . . . . . . Parts Built 5 | . . . . . . . . . . . 1 2 . . . . . . 2 . . . Matter 1133 | . . . . . . . . . . . 285 278 . . . . . . 570 . . . Time 297 | . . . . . . . . . . . 76 69 . . . . . . 152 . . . Total Part Build Rating 33 | . . . . . . . . . . . 5 18 . . . . . . 10 . . . Parts Repaired 11 | . 1 . . . 2 1 . . . . . 1 . . . . 1 . . 3 1 1 Time 471 | . 26 . . . 153 30 . . . . . 56 . . . . 36 . . 132 14 24 Parts Recycled . | . . . . . . . . . . . . . . . . . . . . . . . Recycled Matter . | . . . . . . . . . . . . . . . . . . . . . . . Retrieved Matter . | . . . . . . . . . . . . . . . . . . . . . . . Retrieved Components 11 | . 9 . . . . 2 . . . . . . . . . . . . . . . . Parts Scanalyzed 5 | . . . . . 5 . . . . . . . . . . . . . . . . . Part Schematics Acquired 5 | . . . . . 5 . . . . . . . . . . . . . . . . . Parts Damaged 2 | . . . . . 2 . . . . . . . . . . . . . . . . . Bothacking | -11 -10 -10 -10 -9 -8 -7 -7 -7 -7 -6 -6 -5 -5 -5 -5 -5 -4 -3 -2 -2 -1 -1 ------------ Run | Scr Mat Min Exi Min Mat Fac Low Low Dat Pro Fac Fac Ext Cet Arc Hub Fac Res Res Qua Acc Com Used RIF Installer . | . . . . . . . . . . . . . . . . . . . . . . . Robots Hacked 2 | . . . . . . . . . . . . 1 . . . . . . . . . 1 Non-combat 1 | . . . . . . . . . . . . 1 . . . . . . . . . . Combat . | . . . . . . . . . . . . . . . . . . . . . . . Robot Hacks Applied 1 | . . . . . . . . . . . . 1 . . . . . . . . . . find_chute 1 | . . . . . . . . . . . . 1 . . . . . . . . . . Manual 1 | . . . . . . . . . . . . . . . . . . . . . . 1 Relay Couplers Released 4 | . . . . . . . . . . . . . . . . 3 . . . 1 . . Machine Destruction 4 | . . . . . . . . . . . . . . . . 3 . . . 1 . . Robots Rewired 19 | . . . . . . . . 2 . . . . 16 . . . 1 . . . . . Allies Hacked 4 | . . . . . . 1 . . . . . . 2 . . . 1 . . . . . Hacks Repelled . | . . . . . . . . . . . . . . . . . . . . . . . Allies | -11 -10 -10 -10 -9 -8 -7 -7 -7 -7 -6 -6 -5 -5 -5 -5 -5 -4 -3 -2 -2 -1 -1 -------- Run | Scr Mat Min Exi Min Mat Fac Low Low Dat Pro Fac Fac Ext Cet Arc Hub Fac Res Res Qua Acc Com Total Allies 41 | . . 4 . 1 . 4 . 2 . . . . 24 5 . . 1 . . . . . Largest Group 13 | . . 4 3 3 3 4 . 2 . . . . 13 13 8 6 1 . . . . . Highest-Rated Group 764 | . . 71 40 55 55 80 . 48 . . . . 508 764 679 435 45 . . . . . Highest-Rated Ally 156 | . . 31 16 31 31 32 . 32 . . . . 156 156 150 94 45 . . . . . Total Orders 38 | . . . . . . . . . 11 . . 2 4 2 3 . . . 4 . . 12 STAY 18 | . . . . . . . . . 2 . . . 2 2 2 . . . 1 . . 9 FOLLOW 7 | . . . . . . . . . 2 . . . 2 . 1 . . . 1 . . 1 RETURN 13 | . . . . . . . . . 7 . . 2 . . . . . . 2 . . 2 Ally Attacks 952 | . . 2 . 3 18 32 . 9 82 . . 47 182 140 15 100 5 . 53 . . 264 Total Damage 20001 | . . 32 . 24 280 629 . 296 1322 . . 1251 4164 3285 403 3259 144 . 754 . . 4158 Kills 111 | . . 2 . 1 4 7 . 1 5 . . 10 30 25 3 16 1 . 2 . . 4 Allies Corrupted 5 | . . . . . . . . . . . . . . . . . 1 . 3 . . 1 Allies Melted . | . . . . . . . . . . . . . . . . . . . . . . . Intel | -11 -10 -10 -10 -9 -8 -7 -7 -7 -7 -6 -6 -5 -5 -5 -5 -5 -4 -3 -2 -2 -1 -1 ------- Run | Scr Mat Min Exi Min Mat Fac Low Low Dat Pro Fac Fac Ext Cet Arc Hub Fac Res Res Qua Acc Com Robot Analysis Total 115 | . . . . . . . . . 115 . . . . . . . . . . . . . Derelict Logs Recovered 4 | . . 1 . 1 . . . 1 . 1 . . . . . . . . . . . . Drone Launches 73 | . . . . . . . . . 30 . . 12 . . . . . . 15 . . 16 Drone Recoveries 43 | . . . . . . . . . 26 . . 8 . . . . . . 5 . . 4 Exploration | -11 -10 -10 -10 -9 -8 -7 -7 -7 -7 -6 -6 -5 -5 -5 -5 -5 -4 -3 -2 -2 -1 -1 ------------- Run | Scr Mat Min Exi Min Mat Fac Low Low Dat Pro Fac Fac Ext Cet Arc Hub Fac Res Res Qua Acc Com Turns Passed 31907 | 166 1871 1432 1608 1077 2897 2412 411 678 618 866 864 972 1684 547 1121 478 1136 508 1427 2559 714 5861 Spaces Moved 14196 | 80 836 723 858 517 1280 1279 292 399 250 328 355 383 782 269 190 219 474 221 516 735 257 2953 Core 44 | 7 . . . . . . . . . . . . . . 37 . . . . . . . Treads 12751 | 73 836 723 858 517 1280 627 . 22 250 328 330 328 782 269 153 219 474 221 516 735 257 2953 Legs 80 | . . . . . . . . . . . 25 55 . . . . . . . . . . Wheels 1321 | . . . . . . 652 292 377 . . . . . . . . . . . . . . Hover . | . . . . . . . . . . . . . . . . . . . . . . . Flight . | . . . . . . . . . . . . . . . . . . . . . . . Fastest Speed 50 | 50 160 180 160 200 180 120 120 120 170 185 180 150 158 158 160 160 152 152 145 145 177 155 Average Speed 174 | 150 176 180 184 200 180 150 120 124 204 203 186 180 158 171 537 160 154 165 162 173 177 164 Slowest Speed 2100 | 160 180 180 200 200 200 200 120 230 210 250 240 240 158 180 2100 160 172 200 185 177 177 230 Overloaded Moves . | . . . . . . . . . . . . . . . . . . . . . . . Propulsion Burnouts . | . . . . . . . . . . . . . . . . . . . . . . . Robots Hopped . | . . . . . . . . . . . . . . . . . . . . . . . Cave-ins Triggered 2 | . . 1 . 1 . . . . . . . . . . . . . . . . . . Time Travels 1 | . . . . . . . . . 1 . . . . . . . . . . . . . Exploration Rate (%) 53 | 5 90 99 69 93 85 38 46 62 79 54 15 10 82 72 80 44 13 7 23 60 11 84 Regions Visited 22 Branch Regions 13 Pre-discovered Areas 29 | . 2 . 1 1 . 1 . 1 23 . . . . . . . . . . . . . Known Exits Taken 7 | . . . . . . 1 1 1 . 1 1 . . . . 1 . . 1 . . . Unknown Exits Taken 15 | 1 1 1 1 1 1 . . . 1 . . 1 1 1 1 . 1 1 . 1 1 . Scrap Searched 10 | . . 1 . 2 . . 1 3 . 3 . . . . . . . . . . . . Spaces Dug 114 | . 3 . . . . 24 6 . . . 8 4 2 . . 8 3 5 14 6 12 19 Terrain Destroyed 841 | . 43 . . 35 50 59 6 53 . 18 8 29 28 13 16 186 94 8 25 36 27 107 Melee 45 | . . . . . . 4 6 . . . 8 . . . . 4 3 3 10 1 1 5 Projectile 310 | . 6 . . . . . . . . 18 . 6 28 13 16 18 23 5 14 35 26 102 AOE 486 | . 37 . . 35 50 55 . 53 . . . 23 . . . 164 68 . 1 . . . Terrain Rammed . | . . . . . . . . . . . . . . . . . . . . . . . Walls Destroyed . | . . . . . . . . . . . . . . . . . . . . . . . Machines Disabled . | . . . . . . . . . . . . . . . . . . . . . . . Actions | -11 -10 -10 -10 -9 -8 -7 -7 -7 -7 -6 -6 -5 -5 -5 -5 -5 -4 -3 -2 -2 -1 -1 --------- Run | Scr Mat Min Exi Min Mat Fac Low Low Dat Pro Fac Fac Ext Cet Arc Hub Fac Res Res Qua Acc Com Total 19263 | 103 1039 781 891 552 1627 1598 327 514 358 461 476 607 1126 340 234 304 700 305 877 1924 447 3672 Wait 2192 | . 53 6 . . 93 55 . 14 66 84 21 114 84 39 7 60 50 27 119 995 86 219 Move 14173 | 79 835 722 857 516 1279 1278 291 398 249 327 354 382 781 268 189 218 473 220 515 734 256 2952 Hop . | . . . . . . . . . . . . . . . . . . . . . . . Pick Up 267 | 6 17 4 21 4 22 13 2 7 16 1 8 17 2 4 1 . 28 7 14 27 8 38 Fast Attach 207 | 6 4 . 1 1 16 10 4 4 7 3 7 20 5 7 5 . 11 6 21 27 4 38 Attach 128 | . 4 1 3 1 5 7 2 2 7 . 8 7 . 1 1 . 15 2 17 7 7 31 Detach 33 | . . . . . . 1 . . 2 . 4 1 1 . . . 1 . 4 1 2 16 Swap 187 | . 8 1 . 9 17 33 6 8 1 1 14 6 9 1 . 6 14 2 20 6 5 20 Drop 336 | 1 8 3 9 11 35 23 4 8 9 2 5 19 13 12 6 . 16 11 18 48 8 67 Fire 1376 | 11 110 43 . 10 160 169 12 39 . 43 40 39 52 8 25 15 87 26 117 66 69 235 Melee 136 | . . . . . . 5 6 . 1 . 15 . . . . 4 4 4 32 13 2 50 Ram . | . . . . . . . . . . . . . . . . . . . . . . . Kick . | . . . . . . . . . . . . . . . . . . . . . . . Crush 4 | . . 1 . . . 2 . . . . . . . . . 1 . . . . . . Escape Stasis 10 | . . . . . . 2 . . . . . 2 . . . . . . . . . 6 Rewire 214 | . . . . . . . . 34 . . . . 179 . . . 1 . . . . . Trap . | . . . . . . . . . . . . . . . . . . . . . . . Miscellaneous . | . . . . . . . . . . . . . . . . . . . . . . . Route ------- -11/Scrapyard -10/Materials (discovered 4 exits: [*Mat x3] / [*Min]) -10/Mines (discovered 3 exits: [*Mat x2] / *Exi) -10/Exiles -9/Mines (discovered 2 exits: *Mat x2) -8/Materials (discovered 2 exits: *Fac x2) -7/Factory (discovered 4 exits: *Fac x3 / *Low) -7/Lower Caves -7/Lower Caves (discovered 2 exits: *Fac / *Dat) -7/Data Miner -6/Proximity Caves -6/Factory (discovered 4 exits: *Fac x4) -5/Factory (discovered 2 exits: Fac / *Ext) -5/Extension (discovered 2 exits: *Fac / *Cet) -5/Cetus (discovered 2 exits: *Fac / [*Arc]) -5/Archives (discovered 3 exits: *Fac / *Hub x2) -5/Hub_04(d) (discovered 4 exits: *Fac x4) -4/Factory (discovered 3 exits: *Res / Upp x2) -3/Research -2/Research (discovered 2 exits: *Qua x2) -2/Quarantine -1/Access -1/Command 0b11 Command History --------- Turn | Location | Event 10 | -11/Scrapyard | Discovered new exit (range 14) 167 | -11/Scrapyard | Entered Materials 303 | -10/Materials | Build established: Mutant 537 | -10/Materials | Discovered new exit (range 7) 897 | -10/Materials | Repaired Lgt. Assault Rifle 927 | -10/Materials | Discovered new exit (range 8) 1114 | -10/Materials | Discovered new exit (range 10) 1131 | -10/Materials | Central database locked down 1262 | -10/Materials | Discovered new exit (range 7) 2038 | -10/Materials | Entered Mines 2355 | -10/Mines | Assembled infested the area 2360 | -10/Mines | Assisted by a Guerilla fighting off Assembled 2406 | -10/Mines | YI-UF0 nonchalantly dropped a Grenade Launcher on the ground 2409 | -10/Mines | Destroyed YI-UF0 2603 | -10/Mines | Crushed by falling debris 2747 | -10/Mines | Assisted by bots powering up and referring to "LRC-V3" 2792 | -10/Mines | Discovered new exit (range 7) 2817 | -10/Mines | Discovered new exit (range 12) 2821 | -10/Mines | Learned Materials terminal intel 2835 | -10/Mines | Received a Mining Laser from a helpful Derelict 3302 | -10/Mines | Found a hidden stash of uninstalled traps 3456 | -10/Mines | Deemed a non-threat by the Exiles lab entrance 3458 | -10/Mines | Discovered new exit (range 5) 3470 | -10/Mines | Entered Exiles 3470 | -10/Exiles | Accompanied by 3 allies 3519 | -10/Exiles | Met 8R-AWN 3548 | -10/Exiles | Met EX-HEX 3650 | -10/Exiles | Met EX-DEC 3682 | -10/Exiles | Learned location of Zion (-6) 3814 | -10/Exiles | Met EX-BIN 4021 | -10/Exiles | Discovered new exit (range 10) 4325 | -10/Exiles | Aligned with FarCom system 4327 | -10/Exiles | Given EX-Vault access code 4370 | -10/Exiles | Opened EX-Vault 4411 | -10/Exiles | Warned to stay clear of 0b10 Research branches 4478 | -10/Exiles | Found Chronowheel 4891 | -10/Exiles | Found Army-in-a-Box 4931 | -10/Exiles | Build established: Hauler-Mutant 5078 | -10/Exiles | Stole two prototypes: Army-in-a-Box, Chronowheel 5078 | -10/Exiles | Entered Mines 5078 | -9/Mines | Accompanied by 2 allies 5092 | -9/Mines | Met a Derelict bent on vengeance 5208 | -9/Mines | Found a damaged Exp. Sensor Array with a note attached 5213 | -9/Mines | Found Prototype Device 5475 | -9/Mines | Discovered new exit (range 12) 5494 | -9/Mines | Crushed by falling debris 5494 | -9/Mines | System corruption reached 10% 5630 | -9/Mines | Joined a pair of Derelicts in attacking an 0b10 outpost 6069 | -9/Mines | Discovered new exit (range 14) 6074 | -9/Mines | Met a Derelict testing a Signal Generator 6155 | -9/Mines | Entered Materials 6155 | -8/Materials | Accompanied by 3 allies 6155 | -8/Materials | Evolved 4 slots: Propulsion x1, Utility x3 6156 | -8/Materials | Loaded intel: 11 terminal locations 6683 | -8/Materials | Discovered new exit (range 6) 7124 | -8/Materials | Destroyed 7 combat bots 7605 | -8/Materials | Identified Exp. Sensor Array 7907 | -8/Materials | Repaired Broken Exp. Sensor Array? 7987 | -8/Materials | Repaired Broken Arm. Treads 8555 | -8/Materials | First assault squad dispatched 8735 | -8/Materials | Discovered new exit (range 10) 9052 | -8/Materials | Entered Factory 9052 | -7/Factory | Evolved 2 slots: Utility x2 9054 | -7/Factory | FarCom data flow suspended 9379 | -7/Factory | Discovered new exit (range 15) 9646 | -7/Factory | Found Prototype Launcher 9646 | -7/Factory | Identified Rocket Array 9653 | -7/Factory | Found Rocket Array 10099 | -7/Factory | Garrison activated, responded to threat 10344 | -7/Factory | P-60 Hacker assimilated allied G-47 Trooper 10424 | -7/Factory | Repaired Enh. Autogun 10610 | -7/Factory | P-60 Hacker assimilated allied G-47 Trooper 10682 | -7/Factory | Garrison activated, responded to threat 10957 | -7/Factory | Discovered new exit (range 14) 11048 | -7/Factory | Identified exit to Factory 11052 | -7/Factory | First assault squad dispatched 11349 | -7/Factory | Discovered exit to Factory (range 15) 11436 | -7/Factory | Discovered new exit (range 12) 11456 | -7/Factory | Identified exit to Lower Caves 11464 | -7/Factory | Entered Lower Caves 11472 | -7/Lower Caves | Attacked by a delusional Derelict stockpiling parts 11797 | -7/Lower Caves | Spotted B-75 Beast 11868 | -7/Lower Caves | Discovered new exit (range 5) 11874 | -7/Lower Caves | Identified exit to Lower Caves 11875 | -7/Lower Caves | Entered another Lower Caves area 11959 | -7/Lower Caves | Discovered exit to Factory (range 5) 12003 | -7/Lower Caves | Attracted the attention of an 0b10 outpost 12011 | -7/Lower Caves | Core integrity fell below 50% 12047 | -7/Lower Caves | Destroyed 8 combat bots 12241 | -7/Lower Caves | Encountered a Warlord checkpoint 12428 | -7/Lower Caves | Spotted B-75 Beast 12480 | -7/Lower Caves | Spotted EW-U24(f) 12481 | -7/Lower Caves | Spotted TF-ZT2(f) 12481 | -7/Lower Caves | Spotted CI-O3L(f) 12481 | -7/Lower Caves | Exp. Sensor Array stolen by Master Thief 12482 | -7/Lower Caves | Encountered a Master Thief 12482 | -7/Lower Caves | Encountered a Master Thief 12482 | -7/Lower Caves | Encountered a Master Thief 12482 | -7/Lower Caves | Spotted WA-9RG(f) 12483 | -7/Lower Caves | Encountered a Master Thief 12484 | -7/Lower Caves | Lgt. Angular Momentum Engine stolen by Master Thief 12487 | -7/Lower Caves | Arm. Huge Wheel stolen by Master Thief 12513 | -7/Lower Caves | Weapon Cycler stolen by Master Thief 12513 | -7/Lower Caves | Destroyed TF-ZT2(f) 12532 | -7/Lower Caves | Discovered new exit (range 10) 12549 | -7/Lower Caves | Identified exit to Data Miner 12553 | -7/Lower Caves | Entered Data Miner 12554 | -7/Data Miner | Discovered new exit (range 6) 12579 | -7/Data Miner | Met Data Miner 12626 | -7/Data Miner | Acquired the access code to Warlord's prototype stash 12626 | -7/Data Miner | Learned location of Section 7 (-2) 12660 | -7/Data Miner | Received God Mode back door access code from Data Miner 12876 | -7/Data Miner | Activated Chronowheel 12876 | -7/Data Miner | Spacetime reconverged on an earlier point 12907 | -7/Data Miner | Interfaced with the Data Conduit 12959 | -7/Data Miner | Build established: Mutant 13114 | -7/Data Miner | Found Exp. Thermal Shield 13171 | -7/Data Miner | Entered Proximity Caves 13456 | -6/Proximity Caves | Build established: Derelict-Mutant 13475 | -6/Proximity Caves | Attracted the attention of an 0b10 checkpoint 13551 | -6/Proximity Caves | Spotted B-75 Beast 13804 | -6/Proximity Caves | Core integrity fell below 20% 13995 | -6/Proximity Caves | Learned Factory stockpile data 14008 | -6/Proximity Caves | Discovered exit to Factory (range 8) 14037 | -6/Proximity Caves | Entered Factory 14037 | -6/Factory | Evolved 2 slots: Propulsion x1, Utility x1 14039 | -6/Factory | Loaded intel: 299 machine locations 14059 | -6/Factory | Build established: Mutant 14384 | -6/Factory | Identified exit to Factory 14715 | -6/Factory | Spotted B-75 Beast 14725 | -6/Factory | Fabricated Exp. Sensor Array (x1) 14811 | -6/Factory | Lost 4 parts (2n1u1w) 14901 | -6/Factory | Entered another Factory area 14901 | -5/Factory | Evolved 2 slots: Power x1, Weapon x1 14902 | -5/Factory | Loaded intel: 312 machine locations 15030 | -5/Factory | Lost 10 parts (2p2n3u3w) 15222 | -5/Factory | Repaired Mass Driver 15248 | -5/Factory | Build established: Scavenger-Mutant 15679 | -5/Factory | Discovered new exit (range 17) 15713 | -5/Factory | Discovered new exit (range 9) 15809 | -5/Factory | Fabricated Biometal Heavy Treads (x2) 15873 | -5/Factory | Entered Extension 15874 | -5/Extension | Loaded intel: 37 machine locations 15896 | -5/Extension | Disrupted transfer network 15957 | -5/Extension | Rescued a captive Derelict 15957 | -5/Extension | Rescued a captive Derelict 16139 | -5/Extension | Rescued a captive Derelict 16140 | -5/Extension | Rescued a captive Derelict 16211 | -5/Extension | Destroyed 7 combat bots 16311 | -5/Extension | Rescued a captive Derelict 16312 | -5/Extension | Rescued a captive Derelict 16502 | -5/Extension | Build established: Scavenger-Tank 16650 | -5/Extension | Spotted B-75 Beast 16658 | -5/Extension | Destroyed B-75 Beast 16671 | -5/Extension | Destroyed B-75 Beast 16840 | -5/Extension | Rescued a captive Derelict 16843 | -5/Extension | Rescued a captive Derelict 17073 | -5/Extension | First assault squad dispatched 17131 | -5/Extension | Rescued A7 17183 | -5/Extension | P-70 Sage assimilated allied OV-TGW(g) 17184 | -5/Extension | P-70 Sage assimilated allied Z9-5UX(h) 17524 | -5/Extension | Discovered new exit (range 10) 17526 | -5/Extension | Discovered new exit (range 6) 17557 | -5/Extension | Entered Cetus 17557 | -5/Cetus | Accompanied by 13 allies (A7) 17558 | -5/Cetus | Loaded intel: 24 machine locations 17562 | -5/Cetus | Acquired a Cetus Manufacturing Module code from A7 17578 | -5/Cetus | Spotted Cetus Guard 17578 | -5/Cetus | Spotted Cetus Guard 17582 | -5/Cetus | Spotted Cetus Guard 17583 | -5/Cetus | Spotted Cetus Guard 17583 | -5/Cetus | Allies destroyed Cetus Guard 17594 | -5/Cetus | Allies destroyed Cetus Guard 17601 | -5/Cetus | Allies destroyed Cetus Guard 17603 | -5/Cetus | Allies destroyed Cetus Guard 17685 | -5/Cetus | Started Cetus Manufacturing Module 17709 | -5/Cetus | Escorted A7 to Cetus Mainframe 17710 | -5/Cetus | Manufactured an Enhanced Grunt 17735 | -5/Cetus | Manufactured an Enhanced Grunt 17760 | -5/Cetus | Manufactured an Enhanced Grunt 17785 | -5/Cetus | Manufactured an Enhanced Grunt 17810 | -5/Cetus | Manufactured an Enhanced Grunt 17843 | -5/Cetus | Discovered new exit (range 16) 17872 | -5/Cetus | Spotted Cetus Guard 17872 | -5/Cetus | Spotted Cetus Guard 17874 | -5/Cetus | Spotted Cetus Guard 17876 | -5/Cetus | Spotted Cetus Guard 17883 | -5/Cetus | Allies destroyed Cetus Guard 17887 | -5/Cetus | Allies destroyed Cetus Guard 17889 | -5/Cetus | Allies destroyed Cetus Guard 17896 | -5/Cetus | Discovered new exit (range 15) 17908 | -5/Cetus | Met Revision 17 18078 | -5/Cetus | Destroyed Revision 17 18104 | -5/Cetus | Entered Archives 18104 | -5/Archives | Accompanied by 8 allies (A7) 18105 | -5/Archives | Loaded intel: 8 machine locations 18109 | -5/Archives | Received a hacking code to weaken MAIN.C 18161 | -5/Archives | Discovered new exit (range 15) 18175 | -5/Archives | Discovered new exit (range 16) 18204 | -5/Archives | Discovered new exit (range 16) 18660 | -5/Archives | Build established: Scavenger-Gunner 19225 | -5/Archives | Entered Hub_04(d) 19225 | -5/Hub_04(d) | Accompanied by 6 allies 19226 | -5/Hub_04(d) | Loaded intel: 81 machine locations 19476 | -5/Hub_04(d) | Identified exit to Factory 19525 | -5/Hub_04(d) | First assault squad dispatched 19585 | -5/Hub_04(d) | Garrison activated, responded to threat 19611 | -5/Hub_04(d) | Network Hub disabled 19611 | -5/Hub_04(d) | Network Hub disabled 19700 | -5/Hub_04(d) | Network Hub disabled 19703 | -5/Hub_04(d) | Entered Factory 19703 | -4/Factory | Evolved 2 slots: Utility x2 19704 | -4/Factory | Loaded intel: 235 machine locations 19838 | -4/Factory | Repaired Centrium Medium Armor Plating 19872 | -4/Factory | Spotted B-86 Titan 20044 | -4/Factory | Lost 3 parts (1p1n1u) 20044 | -4/Factory | Destroyed B-86 Titan 20137 | -4/Factory | Lost 4 parts (1p1u2w) 20409 | -4/Factory | Discovered new exit (range 15) 20453 | -4/Factory | First assault squad dispatched 20529 | -4/Factory | Found Quantum Capacitor 20616 | -4/Factory | Found Mni. Smartbomb Launcher 20775 | -4/Factory | Identified exit to Upper Caves 20839 | -4/Factory | Entered Research 20839 | -3/Research | Evolved 2 slots: Power x1, Utility x1 20840 | -3/Research | Loaded intel: 119 machine locations 21100 | -3/Research | Discovered new exit (range 21) 21347 | -3/Research | Entered another Research area 21347 | -2/Research | Evolved 2 slots: Utility x1, Weapon x1 21348 | -2/Research | Loaded intel: 72 machine locations 21486 | -2/Research | Identified exit to Quarantine 21964 | -2/Research | Destroyed 9 combat bots 21968 | -2/Research | Lost 6 parts (1p1u4w) 22175 | -2/Research | Fabricated Exp. Sensor Array? 22230 | -2/Research | System corruption reached 10% 22279 | -2/Research | Intercept squad dispatched 22293 | -2/Research | Spotted Tracker 22294 | -2/Research | Spotted Tracker 22325 | -2/Research | Allies destroyed Tracker 22326 | -2/Research | Allies destroyed Tracker 22330 | -2/Research | Spotted Combat Programmer 22340 | -2/Research | Lost 8 parts (2p1n3u2w) 22348 | -2/Research | Fabricated Lgt. Regenerative Plating (x1) 22354 | -2/Research | Destroyed Combat Programmer 22394 | -2/Research | Spotted Combat Programmer 22403 | -2/Research | Destroyed Combat Programmer 22750 | -2/Research | Local fabrication network quarantined 22759 | -2/Research | Spotted B-90 Cyclops 22774 | -2/Research | Entered Quarantine 22775 | -2/Quarantine | Loaded intel: 68 machine locations 22906 | -2/Quarantine | Repaired Biometal Heavy Treads 23273 | -2/Quarantine | Cryocooling Duct disabled 23273 | -2/Quarantine | Cryocooling Duct disabled 23288 | -2/Quarantine | Ambient heat levels rising (+40) 23288 | -2/Quarantine | Non-combat units ordered to evacuate 23288 | -2/Quarantine | Combat units ordered to evacuate 23388 | -2/Quarantine | Quarantine Guard activated 23405 | -2/Quarantine | Spotted Quarantine Guard 23418 | -2/Quarantine | Spotted Quarantine Guard 23428 | -2/Quarantine | Spotted Quarantine Guard 23428 | -2/Quarantine | Spotted Quarantine Guard 23431 | -2/Quarantine | Spotted Quarantine Guard 23431 | -2/Quarantine | Spotted Quarantine Guard 23432 | -2/Quarantine | Spotted Quarantine Guard 23447 | -2/Quarantine | Destroyed Quarantine Guard 23454 | -2/Quarantine | Destroyed Quarantine Guard 23458 | -2/Quarantine | Destroyed Quarantine Guard 23464 | -2/Quarantine | Destroyed Quarantine Guard 23489 | -2/Quarantine | Destroyed Quarantine Guard 23491 | -2/Quarantine | Destroyed Quarantine Guard 23519 | -2/Quarantine | Destroyed Quarantine Guard 23550 | -2/Quarantine | Spotted Quarantine Guard 23564 | -2/Quarantine | Destroyed Quarantine Guard 23781 | -2/Quarantine | Spotted Quarantine Guard 23790 | -2/Quarantine | Destroyed Quarantine Guard 23873 | -2/Quarantine | Found Exp. Hacking Suite 24022 | -2/Quarantine | Found Alien Slashing Weapon 24022 | -2/Quarantine | Identified Sigix Broadsword 24060 | -2/Quarantine | Found Alien Artifact 24060 | -2/Quarantine | Identified Phase Armor 24354 | -2/Quarantine | Build established: Hauler-Mutant 24493 | -2/Quarantine | Spotted Quarantine Guard 24503 | -2/Quarantine | Destroyed Quarantine Guard 24928 | -2/Quarantine | Repaired Adv. Weapon Cycler 24965 | -2/Quarantine | Repaired Centrium Medium Armor Plating 25027 | -2/Quarantine | Intercept squad dispatched 25030 | -2/Quarantine | Spotted Tracker 25031 | -2/Quarantine | Spotted Tracker 25041 | -2/Quarantine | Spotted Combat Programmer 25042 | -2/Quarantine | Spotted Combat Programmer 25044 | -2/Quarantine | Destroyed Tracker 25050 | -2/Quarantine | Destroyed Tracker 25062 | -2/Quarantine | Destroyed Combat Programmer 25062 | -2/Quarantine | Destroyed Combat Programmer 25074 | -2/Quarantine | Found Alien Artifact 25074 | -2/Quarantine | Identified Phase Redirector 25153 | -2/Quarantine | Build established: Scavenger-Mutant 25167 | -2/Quarantine | Discovered new exit (range 15) 25167 | -2/Quarantine | Spotted Quarantine Guard 25175 | -2/Quarantine | Core integrity fell below 50% 25181 | -2/Quarantine | Destroyed Quarantine Guard 25259 | -2/Quarantine | Found Alien Artifact 25259 | -2/Quarantine | Identified Stasis Generator 25333 | -2/Quarantine | Entered Access 25333 | -1/Access | Evolved 2 slots: Utility x2 25334 | -1/Access | Loaded intel: 97 machine locations 25382 | -1/Access | Repaired Matter Filter 25695 | -1/Access | Destroyed 8 combat bots 25975 | -1/Access | Found Exp. Shock Absorption System 26038 | -1/Access | Discovered new exit (range 5) 26047 | -1/Access | Entered Command 26048 | -1/Command | Loaded intel: 61 machine locations 26555 | -1/Command | Repaired Adv. Heavy Siege Treads 26614 | -1/Command | Build established: Generator-Mutant 26800 | -1/Command | Spotted M Guard 26800 | -1/Command | Spotted M Guard 26800 | -1/Command | Spotted Combat Programmer 26866 | -1/Command | Spotted Combat Programmer 26876 | -1/Command | System corruption reached 10% 26883 | -1/Command | Destroyed Combat Programmer 26918 | -1/Command | Destroyed Combat Programmer 26939 | -1/Command | Destroyed M Guard 26941 | -1/Command | Lost 3 parts (3u) 26957 | -1/Command | Destroyed M Guard 26957 | -1/Command | All MAIN.C guards destroyed 26972 | -1/Command | Found Prototype Device 26972 | -1/Command | Identified AEGIS Remote Shield 26977 | -1/Command | Found Zero-point Reactor 26980 | -1/Command | Found Zero-point Reactor 27001 | -1/Command | Found Zero-point Reactor 27005 | -1/Command | Found Zero-point Reactor 27011 | -1/Command | Found Prototype Protection 27011 | -1/Command | Identified Hvy. Regenerative Plating 27087 | -1/Command | Build established: Scavenger-Mutant 27426 | -1/Command | Met MAIN.C 27426 | -1/Command | Hacked MAIN.C using A7's code 27431 | -1/Command | 0b10 Conduit disabled 27461 | -1/Command | Destroyed MAIN.C Shell 27463 | -1/Command | MAIN.C activated Command garrisons 27557 | -1/Command | Destroyed MAIN.C 28343 | -1/Command | Spotted B-99 Colossus 28369 | -1/Command | Destroyed B-99 Colossus 28660 | -1/Command | Discovered new exit (range 14) 29316 | -1/Command | Door terminal overloaded 29333 | -1/Command | Found Prototype Device 29333 | -1/Command | Identified Exp. Hardlight Generator 29341 | -1/Command | Found Exp. Force Field 29345 | -1/Command | Found Zero-point Reactor 29350 | -1/Command | Found Prototype Energy Cannon 29350 | -1/Command | Identified Null Cannon 30181 | -1/Command | Spotted B-99 Colossus 30203 | -1/Command | Destroyed B-99 Colossus 30238 | -1/Command | Found Prototype Ballistic Gun 30238 | -1/Command | Identified Multirail 30513 | -1/Command | Build established: Generator-Mutant 31093 | -1/Command | Spotted Alpha 7 31096 | -1/Command | Destroyed Alpha 7 31908 | *** | Establishing 0b11! Last Messages --------------- 31129_ Triggered Stasis Trap. 31129_ A bubble of rippling energy engulfs the area. 31129_ Field strength at 70. 31130_ Field strength at 40. 31131_ Field strength at 10. 31132_ Stasis field depleted. 31194_ S-43 Plague destroyed. 31195_ Acquired 6 matter. 31199_ Acquired 1 matter. 31323_ Acquired Adv. Phase Shifter. 31325_ Dropped Imp. System Backup Module. 31353_ Acquired 10 matter. 31426_ Acquired Biometal Heavy Treads. 31538_ Dropped Adv. Phase Shifter. 31539_ Dropped Imp. Weapon Shielding. 31539_ Acquired Phase Armor. 31541_ Dropped Linked Autogun. 31545_ Acquired Linked Autogun. [Achievement: Commander 0b11] [Achievement: Data Run] Map ----- +----------------------------------------------------+ | ""## ! ! *% #??????# ""T"" # ######?? | | ""## ! ! #??????# "" "" # #??###?? | | ""## ! ! #??????# # #? #?? | | ## = ######?# # #? #?? | | # [ = " #???? # # #?? | | + !*"""#### #???###+##### # #?? | | # "" """#??####???# + #?? | | # """ R"#?? ??# *# #?? | | = " """" """#??? ??# =%# #?? | | # "" "" #??? "" ?# ####+######?? | | !! " ! #? """" ?# #?# #?? | | !! " ## """"% # #?# %! #?? | | #######+####### "" # #?# #?? | | ##### ###### + #?# = #?? | | # # #?# ! =*[#?? | | ! ####+##### ### !![%#?? | | #"############# #### #??# #### =######+##### | | #"########????######??#=#??# %=%= !!%%| *% | | # % ############## #### !! =%%* =*= * | | # ! # """T""" +! *%= % !%=% % | | # # """ """/ ########### != #######"#### | | + # ![=#?????????###+###???? %!#?? | | # # !![ #?????????? % ??? #?? | | ########## ! = =#######?? # = "" #?? | | # """""#?# =[## #?# #=%""" #?? | | + """#?# ## @ #?# !] # "T #?? | | + """#?# ## #?# ! " """ #?? | | + """#?# "" #### #?# ! # ??"" #?? | | #""""""#?# """" #??# #?########## ?? #?? | | ########?# """" #??# #? #?? ? #?? | | ?????????# "" #??# #? #??? #?? | | ?????????#########+##+#### # #???? #?? | | ???????????????# # ##########?? | | ???????????????# + "" ## #?? | | ???????????????# # """" ## #?? | | ???????????????# # """"???# #?? | | ???????????????# "" #? "" ???# #?? | | ???????????????#[[ """" #?######???# "#?? | | ???????????????#[ """" ############ ""#?? | | ???????????????# "" # ""#?? | | ???????????????# # ""#?? | | ???????????????# + ""#?? | | ???????????????# # T"#?? | | ???????????????# ########+##### * # ""#?? | | ?????????????###+####### ## # ""#?? | | ?????????????# # = + [!!# ""#?? | | ?????????????# # [ ## [! # ""#?? | | ?????????????# !!! # *= ## ! [! # "#?? | | ?????????????# !!! # ## # #?? | | ?????????????# ! ! # ## # #?? | +----------------------------------------------------+ Best States ------------- Heat Dissipation 154 Coolant Potential 120 Energy Generation 89 Energy Capacity 1520 Matter Stores 500 Matter Capacity 500 Sight Range 23 Robot Scan Range 30 Terrain Scan Range 24 Terrain Scan Density 210 Jamming Range 16 Additional Mass Support 20 Armor Coverage 1200 Resistance: KI 25 Resistance: TH 30 Resistance: EX 75 Core Shielding 30 Utility Shielding 66 Weapon Shielding 66 Weapon Cycling 25 Phase Shifting 15 Evasion (%) 55 Targeting Accuracy 11 Target Analysis 8 Armor Integrity Analysis 66 Recoil Reduction 4 Matter Filtering 50 Kinecelleration 40 Offensive Hacking 32 Item Schematics ----------------- Hcp. Storage Unit | -10/Materials | Hacked Exp. Sensor Array | -8/Materials | Scanalyzed Lgt. Fission Core | -8/Materials | Scanalyzed Weapon Cycler | -8/Materials | Scanalyzed Arm. Treads | -8/Materials | Scanalyzed Enh. Autogun | -8/Materials | Scanalyzed Kinetic Spear | -7/Data Miner | Free Mni. Smartbomb Launcher | -7/Data Miner | Free Exp. ECM Suite | -7/Data Miner | Free Exp. Targeting Computer | -7/Data Miner | Free Exp. Terrain Scan Processor | -7/Data Miner | Free Cmb. Gravmag System | -7/Data Miner | Free Lgt. Regenerative Plating | -7/Data Miner | Free Combat Drone Bay | -7/Data Miner | Free Cmb. Airjet | -6/Factory | Hacked Imp. Armor Integrity Analyzer | -6/Factory | Hacked Adv. EMP Blaster | -6/Factory | Hacked Lrn. Proton Cannon | -5/Factory | Hacked Lrn. Tractor Beam | -5/Extension | Hacked Robot Schematics ------------------ H-55 Commando | -8/Materials | Hacked I-36 Angel | -7/Data Miner | Free P-70 Sage | -7/Data Miner | Free H-66 Slayer | -7/Data Miner | Free G-50 Soldier | -7/Data Miner | Free S-27 Virus | -7/Data Miner | Free Fabricated ------------ Exp. Sensor Array | x1 | -6/Factory Biometal Heavy Treads | x2 | -5/Factory | Preloaded Exp. Sensor Array | x1 | -2/Research Lgt. Regenerative Plating | x1 | -2/Research Alien Tech Used ----------------- Sigix Broadsword Phase Armor Phase Redirector Stasis Generator Achievements -------------- Commander 0b11 Data Run void main() Challenges ------------ None Game ------ Seed SpectralReinforcedSink Manual? 0 Play Time 04:10:03 Cumulative 633.9 hours Start 2021.09.14 @ 09:25:55 End 2021.09.14 @ 13:45:09 Sessions 9 Manual Loads 0 Difficulty Rogue Special Mode None Game No. 373 Rogue 373 Adventurer 0 Explorer 0 Win Type 1 Total 8 Types 4/1/1/1/1/0/0/0/0 Lore% 89 Gallery% 91 Achievement% 73 Wizard Run 0 Options --------- ASCII 0 Keyboard 0 Movement Mouse Keybinds 1 Fullscreen 2 Font 24/Smallcaps Map View 76x50 Tactical HUD 1 Map Filters NONE Filters NONE Steam 1 RUN: 2f0099e3-17f1-4ccd-a190-d508bd718f13